bitfinex/quotes_ETHUSD_20250731
["timestamp","ask_amount","ask_price","bid_price","bid_amount"]
[1753970917638,5.62640138,3807.5,3807.0,4.12]
[1753970917639,2.62653323,3807.3,3807.0,4.12]
[1753970918110,2.62653323,3807.3,3806.9,0.001]
[1753970918111,0.76248493,3807.2,3806.9,0.001]
[1753970918359,6.94894021,3807.0,3806.9,0.001]
[1753970918645,3.94914722,3806.7,3806.6,0.001]
[1753970918821,3.93855426,3806.4,3805.6,6.309]
[1753970919022,6.9697568,3806.4,3805.6,4.12]
[1753970919209,6.93855426,3806.4,3805.6,4.12]
[1753970919406,10.43339116,3806.4,3805.6,4.12]
[1753970920233,9.97389116,3806.4,3805.6,4.12]
[1753970920426,3.7614,3806.4,3805.8,0.451]
[1753970920749,6.86075426,3806.4,3805.8,0.451]
[1753970921314,6.99195426,3806.4,3805.8,0.5822]
[1753970921710,6.99195426,3806.4,3805.8,3.20976092]
[1753970921711,4.3648,3806.4,3805.8,3.20976092]
[1753970921957,3.0,3806.6,3806.3,0.452]
[1753970922251,3.1312,3806.6,3806.4,0.451]
[1753970922450,3.1312,3806.6,3806.3,4.121]
[1753970922816,0.1312,3806.6,3806.4,1.2366]
[1753970923028,0.1312,3806.6,3806.5,3.07808524]
[1753970923452,0.002,3807.1,3806.5,3.35708524]
[1753970923652,2.62868614,3807.1,3806.6,0.1312]
[1753970923851,2.62868614,3807.1,3806.7,0.451]
[1753970924123,3.002,3807.1,3806.7,0.451]
[1753970924328,2.62868668,3807.1,3806.7,0.451]
[1753970925060,3.002,3807.1,3806.7,0.451]
[1753970925265,0.002,3807.1,3806.8,0.451]
[1753970925469,0.002,3807.1,3806.9,4.571]
[1753970925772,2.62674021,3807.0,3806.9,4.12]
[1753970925983,3.09894021,3807.0,3806.9,4.12]
[1753970926762,0.4722,3807.0,3806.9,4.12]
[1753970927128,2.62674021,3807.0,3806.9,4.12]
[1753970927530,0.002,3807.1,3806.9,4.12]
[1753970927730,3.87594021,3807.0,3806.9,4.12]
[1753970927931,5.31509492,3807.0,3806.9,4.12]
[1753970929570,5.31509492,3807.0,3806.9,4.119]
[1753970929768,0.55,3806.9,3806.3,0.001]
[1753970929984,2.62715426,3806.4,3806.3,0.001]
[1753970930131,2.62710093,3806.5,3806.3,4.12]
[1753970930466,0.1312,3806.6,3806.3,4.12]
[1753970930667,0.1312,3806.6,3806.4,0.4489]
[1753970930854,3.1312,3806.9,3806.4,0.4489]
[1753970931057,3.1312,3806.9,3806.5,0.4489]
[1753970931254,0.1312,3806.9,3806.6,0.4489]
[1753970931458,0.1312,3806.9,3806.7,0.4489]
[1753970931658,0.1312,3806.9,3806.8,4.119]
[1753970932528,0.37648507,3806.9,3806.8,4.119]
[1753970932740,3.00329428,3806.9,3806.8,4.119]
[1753970932952,0.37648507,3806.9,3806.8,4.119]
[1753970933836,0.24528507,3806.9,3806.8,4.5679]
[1753970934223,0.002,3807.1,3806.8,4.5679]
[1753970934531,0.002,3807.1,3806.9,0.4489]
[1753970934993,0.2472688,3807.1,3806.8,4.119]
[1753970935192,2.87397173,3807.1,3806.8,4.119]
[1753970935470,0.2452688,3807.0,3806.8,7.19472195]
[1753970935674,0.002,3807.1,3806.8,4.119]
[1753970935876,0.4681,3807.0,3806.8,4.119]
[1753970936653,0.4681,3806.9,3806.8,4.119]
[1753970936974,3.09490921,3806.9,3806.8,4.119]
[1753970937177,3.09490921,3806.9,3806.3,0.001]
[1753970937178,2.62715426,3806.4,3806.3,0.001]
[1753970937338,7.05955426,3806.4,3806.3,0.001]
[1753970937540,9.87553191,3806.4,3806.3,0.001]
[1753970939356,9.87553191,3806.4,3805.7,4.119]
[1753970939556,3.17798276,3805.2,3804.8,0.001]
[1753970939791,6.94098276,3805.2,3804.8,0.001]
[1753970939953,8.49716934,3805.2,3804.8,0.001]
[1753970940402,8.63083195,3805.2,3804.8,0.001]
[1753970941194,9.08663195,3805.2,3804.8,0.001]
[1753970941594,3.99458996,3804.9,3804.8,0.001]
[1753970941910,6.94815904,3804.8,3804.7,1e-08]
[1753970942109,10.29198394,3804.8,3804.7,1e-08]
[1753970943404,9.83618394,3804.8,3804.7,1e-08]
[1753970943714,14.40998394,3804.8,3804.7,1e-08]
[1753970944711,13.95418394,3804.8,3804.7,1e-08]
[1753970945074,7.2079249,3804.8,3804.7,1e-08]
[1753970945275,11.66645904,3804.8,3804.7,1e-08]
[1753970945508,12.12225904,3804.8,3804.7,1e-08]
[1753970947010,11.66645904,3804.8,3804.7,1e-08]
[1753970947210,12.12225904,3804.8,3804.7,1e-08]
[1753970948299,7.54745904,3804.8,3804.7,1e-08]
[1753970948630,13.34201848,3804.8,3804.7,1e-08]
[1753970950917,9.22301848,3804.8,3804.7,1e-08]
[1753970951551,0.55,3804.1,3803.4,0.279]
[1753970951757,2.62886861,3804.0,3803.5,4.119]
[1753970951888,0.4681,3804.4,3803.3,0.02629295]
[1753970951889,6.58,3804.3,3803.3,4.119]
[1753970952089,6.58,3804.3,3803.5,2.62909975]
[1753970952090,0.1312,3803.8,3803.5,2.62909975]
[1753970952315,0.1312,3803.8,3803.5,2.90809975]
[1753970952516,0.1312,3803.8,3803.5,0.279]
[1753970952930,3.0,3804.4,3803.6,0.279]
[1753970953111,0.1312,3804.0,3803.6,0.279]
[1753970953317,0.1312,3804.0,3803.7,0.279]
[1753970953486,0.1312,3804.0,3803.9,2.62888088]
[1753970953691,0.1312,3804.0,3803.9,3.07778088]
[1753970953915,0.1312,3804.0,3803.9,0.4489]
[1753970954127,0.1312,3804.3,3803.9,0.4489]
[1753970954427,0.1312,3804.3,3804.0,0.4489]
[1753970954815,0.1312,3804.3,3803.8,0.8001]
[1753970955022,3.0,3804.2,3803.8,0.8001]
[1753970955217,3.1312,3804.3,3803.9,0.4489]
[1753970955532,0.1312,3804.0,3803.9,0.4489]
[1753970955897,0.1312,3804.0,3803.8,3.42900929]
[1753970956093,0.1312,3804.0,3803.5,0.1312]
[1753970956404,2.62892883,3803.9,3803.6,4.119]
[1753970956606,0.1312,3803.8,3803.6,4.119]
[1753970956875,0.1312,3803.8,3803.7,0.4516]
[1753970957224,2.62903098,3803.7,3803.1,0.04]
[1753970957424,0.4645,3803.8,3803.1,4.159]
[1753970957654,3.0,3803.7,3803.1,6.78840944]
[1753970957854,0.4705,3804.2,3803.2,2.62934051]
[1753970957855,5.62890544,3803.9,3803.2,2.62934051]
[1753970958055,0.55,3804.0,3803.1,4.159]
[1753970958257,0.94154,3804.0,3803.1,4.159]
[1753970958568,3.0,3803.9,3803.2,2.62936054]
[1753970958861,3.0,3803.8,3803.3,2.6292841]
[1753970959071,3.0,3803.8,3803.1,7.06742222]
[1753970959234,3.0,3803.8,3803.4,0.4516]
[1753970959644,3.0,3803.8,3803.1,7.06742222]
[1753970959645,2.62888088,3803.9,3803.2,2.62930966]
[1753970959844,3.0,3803.9,3803.3,3.35985071]
[1753970960176,0.7719,3804.6,3803.5,0.7814]
[1753970960334,0.13366261,3805.2,3803.7,0.7968]
[1753970960534,5.3715,3805.4,3804.2,2.62866819]
[1753970960535,2.62824657,3804.9,3804.2,2.62866819]
[1753970960840,3.0,3805.0,3804.3,0.7306]
[1753970961163,0.03120254,3804.9,3804.3,0.4516]
[1753970961344,3.0,3804.7,3804.4,4.119]
[1753970961542,5.62819096,3804.9,3804.4,4.5706]
[1753970961854,2.6283855,3804.7,3804.4,4.5706]
[1753970962065,3.0,3804.7,3804.5,0.4516]
[1753970962239,2.62835752,3804.7,3804.4,4.119]
[1753970962585,2.62841247,3804.6,3804.4,4.5706]
[1753970962940,2.62846628,3804.5,3804.4,4.119]
[1753970963380,3.4645,3804.5,3803.9,1.2484]
[1753970963581,2.62874267,3804.1,3804.0,4.118]
[1753970964955,0.4645,3804.5,3804.0,4.118]
[1753970965160,5.62847865,3804.5,3804.1,0.4516]
[1753970965415,6.579,3804.6,3804.2,0.4516]
[1753970965694,5.62846656,3804.5,3804.3,0.8216]
[1753970965999,9.20740515,3804.6,3804.3,1.2732]
[1753970966304,6.578,3805.1,3804.4,0.7306]
[1753970966593,0.49078295,3805.0,3804.6,2.6283358]
[1753970966803,0.24539128,3804.9,3804.7,6.74630751]
[1753970966957,0.002,3805.2,3804.9,0.763]
[1753970967154,0.002,3805.2,3805.1,0.1312]
[1753970967500,0.4928665,3805.2,3805.1,0.1312]
[1753970967999,0.24759557,3805.2,3805.1,3.94143783]
[1753970968210,0.002,3805.2,3805.1,4.76133783]
[1753970968400,0.002,3805.2,3805.1,4.73505732]
[1753970968758,0.002,3805.2,3805.1,4.76133783]
[1753970968972,1e-08,3805.2,3805.1,4.76133783]
[1753970969462,1e-08,3805.2,3805.1,5.31133783]
[1753970969669,1e-08,3805.2,3805.1,5.28505732]
[1753970970205,1e-08,3805.2,3805.1,4.73505732]
[1753970970384,1e-08,3805.2,3805.1,8.87833783]
[1753970970585,1e-08,3805.2,3805.1,8.85205732]
[1753970970902,1e-08,3805.2,3805.1,8.85105732]
[1753970971558,1e-08,3805.2,3805.1,4.45605732]
[1753970971764,1e-08,3805.2,3805.1,5.0671]
[1753970971993,0.46450001,3805.2,3805.1,4.2472]
[1753970972290,1e-08,3805.2,3805.1,4.116]
[1753970972696,3.09248277,3805.2,3805.1,4.116]
[1753970972927,3.33825394,3805.2,3805.1,4.116]
[1753970973129,0.71027118,3805.2,3805.1,4.116]
[1753970974146,0.24577118,3805.2,3805.1,4.116]
[1753970974301,1e-08,3805.2,3805.1,4.2472]
[1753970975133,3.56298277,3805.2,3805.1,4.116]
[1753970975307,4.48012398,3805.2,3805.1,4.116]
[1753970975510,4.72595887,3805.2,3805.1,4.116]
[1753970977043,0.55,3805.0,3803.6,0.8183]
[1753970977250,0.1312,3804.6,3803.9,4.116]
[1753970977542,3.7642,3804.8,3803.9,4.116]
[1753970977543,2.75977417,3804.4,3803.9,4.116]
[1753970977905,2.62882363,3804.0,3803.8,0.1322]
[1753970978105,3.0,3804.2,3803.9,4.116]
[1753970978524,3.09324267,3804.1,3803.9,4.116]
[1753970978704,2.62881177,3804.0,3803.9,4.116]
[1753970978905,0.4645,3804.0,3803.9,4.116]
[1753970979221,3.09331177,3804.0,3803.9,4.116]
[1753970980066,2.62888088,3803.9,3803.8,0.001]
[1753970980232,2.62888088,3803.9,3803.8,4.117]
[1753970980436,3.56388088,3803.9,3803.8,4.117]
[1753970980947,0.935,3803.9,3803.8,4.117]
[1753970981269,3.09338088,3803.9,3803.8,4.117]
[1753970981574,0.4645,3803.9,3803.8,4.117]
[1753970981954,3.09338088,3803.9,3803.8,4.117]
[1753970982480,4.44921393,3803.9,3803.8,4.117]
[1753970982773,4.58041393,3803.9,3803.8,4.117]
[1753970983373,0.5957,3803.9,3803.8,4.117]
[1753970983593,3.22458088,3803.9,3803.8,4.117]
[1753970984190,0.1312,3803.9,3803.8,4.117]
[1753970984335,3.0,3804.1,3803.8,4.117]
[1753970984546,2.62881177,3804.0,3803.8,4.117]
[1753970984849,3.09338088,3803.9,3803.8,4.117]
[1753970986161,4.02576409,3803.9,3803.8,4.117]
[1753970986888,4.46096409,3803.9,3803.8,4.117]
[1753970987597,4.46096409,3803.9,3803.8,0.001]
[1753970987895,4.02576409,3803.9,3803.8,4.116]
[1753970989165,4.02576409,3803.9,3803.8,0.001]
[1753970989365,4.02576409,3803.9,3803.8,4.116]
[1753970990170,5.25056409,3803.9,3803.8,4.116]
[1753970990904,8.25056409,3803.9,3803.8,4.116]
[1753970992277,5.62915735,3803.5,3803.4,0.001]
[1753970992607,5.76035735,3803.5,3803.4,0.001]
[1753970992797,6.21965735,3803.5,3803.4,0.001]
[1753970993464,0.1312,3803.5,3803.4,0.001]
[1753970993667,3.0,3803.6,3803.4,1.271]
[1753970993888,0.1312,3803.8,3803.5,0.4681]
[1753970994090,6.58,3804.3,3803.5,4.115]
[1753970994406,0.1312,3804.2,3803.6,0.5993]
[1753970994642,3.0,3804.1,3803.6,0.5993]
[1753970994804,0.4593,3804.0,3803.6,0.1312]
[1753970995005,0.4593,3803.9,3803.5,4.115]
[1753970995400,0.5905,3803.8,3803.5,4.115]
[1753970995605,0.1312,3803.8,3803.5,4.115]
[1753970996101,0.1312,3803.8,3803.5,6.74409397]
[1753970996305,0.1312,3803.8,3803.5,7.21219397]
[1753970996807,0.1312,3803.8,3803.5,4.5831]
[1753970998042,0.1312,3803.8,3803.5,7.21224928]
[1753970998342,0.1312,3803.8,3803.6,0.4681]
[1753970998543,0.1312,3804.1,3803.6,2.62908823]
[1753970998735,0.1312,3804.1,3803.7,3.09711387]
[1753970998937,0.1312,3804.1,3803.8,4.115]
[1753970999243,0.1312,3804.1,3803.8,4.5831]
[1753970999943,0.1312,3804.1,3803.8,4.115]
[1753971000506,3.0,3804.4,3803.8,4.5831]
[1753971000706,0.1312,3804.5,3803.9,3.09692762]
[1753971000957,0.1312,3804.5,3803.9,1.61129168]
[1753971001143,2.75944013,3804.9,3804.3,0.1312]
[1753971001338,2.75944013,3804.9,3804.0,1.552]
[1753971001339,2.76105389,3804.8,3804.4,4.114]
[1753971001532,2.76105389,3804.8,3804.5,4.5821]
[1753971001533,0.1312,3804.7,3804.5,4.5821]
[1753971001745,0.13278898,3804.8,3804.7,2.62832812]
[1753971001947,0.13278898,3804.8,3804.7,6.74232812]
[1753971002147,0.13278898,3804.8,3804.7,8.99830554]
[1753971002452,1e-08,3805.2,3805.1,2.62805182]
[1753971002651,1e-08,3805.2,3805.1,6.74205182]
[1753971002950,0.45930001,3805.2,3804.7,0.8229]
[1753971003149,0.1312,3805.0,3804.8,4.114]
[1753971003323,0.1312,3805.0,3804.9,4.114]
[1753971004049,3.65382089,3805.0,3804.9,4.114]
[1753971004256,4.6293253,3805.0,3804.9,4.114]
[1753971004411,0.37677543,3805.0,3804.9,4.114]
[1753971004609,0.24557543,3805.0,3804.9,4.5821]
[1753971004814,1e-08,3805.2,3804.9,4.5821]
[1753971005357,1e-08,3805.2,3805.0,3.09622089]
[1753971005651,1e-08,3805.2,3805.1,3.53935182]
[1753971005853,1e-08,3805.2,3805.1,5.39194298]
[1753971006012,0.24557544,3805.2,3805.1,5.39194298]
[1753971006214,0.24557544,3805.2,3805.1,4.00745182]
[1753971007026,1e-08,3805.2,3805.1,4.00745182]
[1753971007229,1e-08,3805.2,3805.1,3.53935182]
[1753971007716,0.24557544,3805.2,3805.1,3.53935182]
[1753971008515,0.24557544,3805.2,3805.1,4.28645182]
[1753971008854,1e-08,3805.2,3805.1,4.00745182]
[1753971009900,1e-08,3805.2,3805.1,2.75925182]
[1753971010083,0.24557544,3805.2,3805.1,2.75925182]
[1753971010280,1e-08,3805.2,3805.1,2.75925182]
[1753971010481,1e-08,3805.2,3805.1,3.22735182]
[1753971010882,0.24557544,3805.2,3805.1,7.33935182]
[1753971011191,1e-08,3805.2,3805.1,7.33935182]
[1753971011392,1e-08,3805.2,3805.1,6.87125182]
[1753971012019,0.45930001,3805.2,3805.1,0.1312]
[1753971012296,3.17807356,3805.1,3804.9,4.112]
[1753971012473,3.8994067,3805.0,3804.8,4.112]
[1753971012669,3.46426539,3804.9,3804.8,4.112]
[1753971012854,0.24557543,3804.9,3804.8,4.112]
[1753971013054,0.37677543,3805.1,3804.8,4.112]
[1753971013361,0.37677543,3805.1,3805.0,3.41502089]
[1753971013362,0.24557543,3805.1,3805.0,3.41502089]
[1753971013566,1e-08,3805.2,3805.1,2.62805182]
[1753971013766,1e-08,3805.2,3805.1,7.20715182]
[1753971014305,1e-08,3805.2,3805.1,4.111]
[1753971014510,0.45930001,3805.2,3805.1,4.111]
[1753971014800,0.70488311,3805.2,3805.1,4.111]
[1753971015263,0.70488311,3805.2,3804.8,0.1312]
[1753971015460,0.70488311,3805.2,3804.9,4.111]
[1753971015461,1.17128564,3805.1,3804.9,4.111]
[1753971015661,1.1400831,3805.0,3804.9,4.111]
[1753971015896,2.57212209,3805.0,3804.3,0.1312]
[1753971016068,2.75966628,3804.5,3804.4,4.111]
[1753971016276,1.3372831,3804.5,3804.4,4.111]
[1753971016604,0.1312,3805.1,3804.4,4.825]
[1753971016801,2.75926326,3805.1,3804.5,3.06341031]
[1753971016980,0.49120447,3805.0,3804.6,0.1312]
[1753971017197,0.24561832,3804.9,3804.7,4.111]
[1753971017411,0.24561832,3804.8,3804.7,4.111]
[1753971017791,0.24561832,3804.8,3804.7,7.17432812]
[1753971018091,0.24561832,3804.8,3804.7,8.16772188]
[1753971018308,0.24561832,3804.8,3804.7,5.53939922]
[1753971018512,0.24562026,3804.8,3804.7,7.58452812]
[1753971018692,1e-08,3805.2,3804.7,4.6772]
[1753971018893,0.4858,3805.1,3804.7,4.2422]
[1753971019092,0.24562035,3805.0,3804.7,4.111]
[1753971019299,0.24562035,3804.9,3804.7,4.111]
[1753971019895,0.4858,3804.8,3804.3,0.7668]
[1753971020111,0.24567031,3804.7,3804.4,4.111]
[1753971020282,0.4858,3804.7,3804.4,4.111]
[1753971020485,0.1312,3804.8,3804.4,4.111]
[1753971020684,0.4858,3804.7,3804.4,4.111]
[1753971020916,0.4858,3804.7,3804.4,6.73953093]
[1753971021121,0.4858,3804.7,3804.4,4.111]
[1753971021322,0.2457662,3804.6,3804.4,6.73953519]
[1753971021520,0.4858,3804.7,3804.4,4.111]
[1753971021724,0.24582953,3804.6,3804.4,4.111]
[1753971021881,0.4747,3804.5,3803.6,0.8119]
[1753971022090,0.1312,3804.3,3803.9,4.11]
[1753971022299,0.4858,3804.5,3803.9,4.11]
[1753971022499,0.37703741,3804.4,3803.9,4.6762]
[1753971022787,0.1312,3804.8,3804.3,0.1312]
[1753971022987,0.24583134,3804.8,3804.4,4.57128535]
[1753971023221,0.73163134,3804.7,3804.5,0.9363]
[1753971023422,0.24583134,3804.6,3804.4,4.11]
[1753971023823,0.1312,3804.8,3804.4,6.73851033]
[1753971024041,0.37706954,3804.8,3804.4,4.11]
[1753971024188,0.24586954,3804.8,3804.7,2.75952812]
[1753971024388,0.24589464,3804.8,3804.7,5.0463]
[1753971024612,0.24588117,3804.8,3804.7,0.1312]
[1753971024810,0.24588117,3804.8,3804.0,4.11]
[1753971024811,1.0917,3804.8,3804.0,4.11]
[1753971025049,2.62847536,3804.5,3804.0,4.11]
[1753971025237,0.1312,3804.2,3804.0,4.11]
[1753971025429,0.4858,3804.7,3804.0,4.11]
[1753971025624,0.1312,3804.5,3804.0,4.2412]
[1753971025831,0.1312,3804.5,3804.0,6.86994353]
[1753971025832,0.4858,3804.4,3804.0,6.86994353]
[1753971026350,0.1312,3804.5,3804.0,6.86994353]
[1753971026351,0.1312,3804.5,3804.1,0.435]
[1753971026647,0.1312,3804.5,3804.0,5.23468427]
[1753971026648,0.617,3804.5,3804.0,4.2412]
[1753971026821,0.4858,3804.4,3804.0,4.11]
[1753971027023,3.10304394,3804.7,3804.1,2.6287284]
[1753971027226,0.4858,3804.3,3803.8,0.001]
[1753971027450,0.4858,3804.3,3803.9,4.11]
[1753971027651,3.11443057,3804.3,3803.9,4.11]
[1753971027831,0.9605,3804.2,3803.9,4.11]
[1753971028388,2.6284876,3804.5,3803.9,6.73887071]
[1753971028517,2.6284876,3804.5,3803.9,4.11]
[1753971028956,3.11437948,3804.4,3803.9,4.11]
[1753971029151,0.9605,3804.3,3803.9,4.11]
[1753971029356,2.62847941,3804.5,3803.9,4.11]
[1753971029524,0.9605,3804.2,3803.9,4.11]
[1753971029726,0.4858,3804.1,3803.8,0.001]
[1753971030067,3.58926078,3804.1,3803.9,4.11]
[1753971030236,0.4747,3804.1,3803.9,4.11]
[1753971030561,0.4747,3804.1,3803.8,0.001]
[1753971030562,1.5105,3804.0,3803.8,0.001]
[1753971030758,0.15105,3803.9,3803.8,4.111]
[1753971030963,0.4858,3804.0,3803.8,4.111]
[1753971031271,1.3167,3804.3,3803.8,4.111]
[1753971031430,0.002,3805.3,3803.8,4.111]
[1753971031431,1.3299,3804.6,3803.8,4.111]
[1753971031630,3.11447884,3804.2,3803.8,4.111]
[1753971031829,2.62867884,3804.2,3803.8,4.111]
[1753971032168,0.4858,3804.1,3803.8,4.111]
[1753971032789,0.4858,3804.0,3803.8,4.111]
[1753971032987,0.4747,3804.5,3803.8,4.111]
[1753971033287,0.4858,3803.9,3803.8,4.111]
[1753971033487,2.62871807,3804.2,3803.8,4.111]
[1753971033645,1.2657,3804.6,3803.9,0.435]
[1753971033845,0.24603181,3804.5,3803.9,3.0638305]
[1753971034147,0.24603181,3804.5,3804.0,0.02628811]
[1753971034348,0.73183181,3804.4,3803.8,0.001]
[1753971034569,0.24603181,3804.3,3803.9,4.11]
[1753971034767,0.4858,3804.2,3803.9,4.11]
[1753971034994,0.4858,3804.1,3803.9,4.11]
[1753971035374,3.0,3804.4,3803.9,4.11]
[1753971035561,3.0,3804.7,3804.1,2.62869246]
[1753971035763,0.24598387,3804.6,3804.3,2.62860447]
[1753971035988,2.62800166,3805.2,3804.4,4.545]
[1753971035989,1e-08,3805.2,3804.4,4.545]
[1753971036152,1e-08,3805.2,3805.1,2.62805182]
[1753971036511,0.24599516,3805.2,3805.1,4.11]
[1753971036652,0.24599516,3805.2,3805.1,6.73805182]
[1753971037098,0.24599516,3805.2,3805.1,6.86925182]
[1753971037444,1e-08,3805.2,3805.1,7.30425182]
[1753971037784,1e-08,3805.2,3805.1,8.29749531]
[1753971038024,1e-08,3805.2,3805.1,8.68519531]
[1753971038170,1e-08,3805.2,3805.1,9.39919531]
[1753971038699,1e-08,3805.2,3805.1,12.39919531]
[1753971039454,1e-08,3805.2,3805.1,5.01019531]
[1753971039667,1e-08,3805.2,3805.1,9.12019531]
[1753971040463,1e-08,3805.2,3805.1,5.01019531]
[1753971040663,1e-08,3805.2,3805.1,9.11919531]
[1753971040992,1e-08,3805.2,3805.1,9.39819531]
[1753971041207,1e-08,3805.2,3805.1,12.39819531]
[1753971041507,1.2409,3807.4,3806.8,2.62687821]
[1753971041725,0.24538354,3807.3,3806.8,6.73587821]
[1753971042012,0.24538354,3807.3,3806.8,7.25863472]
[1753971042165,0.4878,3807.4,3806.8,4.63175651]
[1753971042363,0.4878,3807.4,3806.8,6.86707821]
[1753971042897,0.5258,3806.9,3806.8,4.2402]
[1753971043094,0.5258,3806.9,3806.8,4.108]
[1753971043594,0.5258,3806.9,3806.5,0.1312]
[1753971043910,0.4858,3806.8,3806.6,4.108]
[1753971044107,0.4858,3806.7,3806.6,4.108]
[1753971044698,0.9605,3806.7,3806.6,4.108]
[1753971044870,0.4858,3806.7,3806.6,4.108]
[1753971045487,0.04,3806.9,3806.8,2.62687821]
[1753971045687,0.04,3806.9,3806.8,2.78434699]
[1753971045875,0.04,3806.9,3806.8,3.49834699]
[1753971046317,0.04,3806.9,3806.8,3.47207821]
[1753971046972,0.04,3806.9,3806.8,3.19307821]
[1753971047218,0.04,3806.9,3806.8,4.15395821]
[1753971047723,0.04,3806.9,3806.8,1.09208]
[1753971047886,0.04,3806.9,3806.8,0.1312]
[1753971048218,0.5181,3806.9,3806.8,4.2382]
[1753971048519,0.04,3806.9,3806.8,4.2382]
[1753971048718,0.04,3806.9,3806.3,0.7803]
[1753971048922,0.04,3806.9,3806.5,0.1312]
[1753971048923,0.9155,3806.8,3806.5,0.1312]
[1753971049090,0.9155,3806.7,3806.6,4.107]
[1753971049508,3.54244722,3806.7,3806.6,4.107]
[1753971049711,3.10504722,3806.7,3806.6,4.107]
[1753971050080,0.04,3806.9,3806.6,4.107]
[1753971050423,0.04,3806.9,3806.7,3.90883647]
[1753971050727,0.04,3806.9,3806.8,2.62687821]
[1753971050935,0.04,3806.9,3806.8,0.461]
[1753971051240,0.04,3806.9,3806.8,6.86507821]
[1753971051429,0.04,3806.9,3806.8,4.2382]
[1753971051630,0.04,3806.9,3806.8,5.26951154]
[1753971051829,0.04,3806.9,3806.8,0.1312]
[1753971052030,0.04,3806.9,3806.2,6.313]
[1753971052031,0.9555,3806.9,3806.2,6.313]
[1753971052342,2.62701623,3806.6,3806.3,4.106]
[1753971052516,0.4781,3806.5,3806.3,4.2372]
[1753971052700,3.10523311,3806.5,3806.3,4.2372]
[1753971052901,3.10525426,3806.4,3806.3,4.2372]
[1753971053101,2.62722328,3806.3,3806.2,6.313]
[1753971053338,2.62722328,3806.3,3806.2,10.419]
[1753971053339,3.10532328,3806.3,3806.2,10.419]
[1753971053870,2.62729231,3806.2,3805.3,0.7671]
[1753971054149,2.62729231,3806.2,3803.8,2.62990196]
[1753971054150,2.62779597,3805.5,3805.4,4.106]
[1753971054302,2.62779597,3805.5,3804.9,0.1312]
[1753971054303,2.62810813,3805.1,3804.9,0.1312]
[1753971054507,2.62810813,3805.1,3805.0,4.106]
[1753971054740,3.10620813,3805.1,3805.0,4.106]
[1753971055104,1.3654,3805.5,3805.0,4.106]
[1753971055309,1.2342,3805.5,3805.0,4.106]
[1753971055504,0.4781,3805.4,3805.1,0.1312]
[1753971056104,2.62792285,3805.3,3805.1,0.1312]
[1753971056437,3.10596376,3805.4,3805.1,0.1312]
[1753971056859,0.1312,3805.7,3805.1,0.1312]
[1753971057002,2.75889331,3805.7,3805.1,1.35062]
[1753971057204,0.4781,3805.9,3805.1,1.21942]
[1753971057403,0.4781,3805.9,3805.0,4.106]
[1753971057404,2.62768974,3805.7,3805.6,0.1312]
[1753971057638,4.45188974,3805.7,3805.6,4.106]
[1753971057911,7.45188974,3805.7,3805.6,4.106]
[1753971059456,8.45982903,3805.7,3805.6,4.106]
[1753971059839,5.83213929,3805.7,3804.4,0.8099]
[1753971060071,2.62807119,3805.1,3804.8,0.1312]
[1753971060268,2.62807119,3805.1,3804.9,4.107]
[1753971060472,2.62818996,3804.9,3804.8,0.1312]
[1753971060633,3.6749214,3804.9,3804.2,6.312]
[1753971060836,3.54377672,3804.8,3804.3,4.2372]
[1753971061166,0.4781,3804.7,3804.3,4.2372]
[1753971061368,2.62835039,3804.7,3804.3,4.2372]
[1753971061528,0.4781,3804.6,3804.3,4.2372]
[1753971061731,0.4781,3804.6,3804.3,4.86022]
[1753971061956,2.62835039,3804.7,3804.3,4.86022]
[1753971062155,2.6283287,3804.7,3804.3,4.86022]
[1753971062368,0.6093,3804.9,3804.3,4.86022]
[1753971062582,0.6093,3804.9,3804.3,5.32122]
[1753971062798,2.65946158,3804.8,3804.3,4.86022]
[1753971062946,2.62853538,3804.4,3804.3,0.1312]
[1753971063150,2.62853538,3804.4,3804.3,4.2382]
[1753971063350,2.75973538,3804.4,3804.3,4.107]
[1753971063550,3.23783538,3804.4,3804.3,4.107]
[1753971063787,3.67523538,3804.4,3804.3,4.107]
[1753971063995,1.0467,3804.4,3804.3,4.107]
[1753971064205,0.6093,3804.4,3804.3,4.107]
[1753971064681,3.6093,3804.8,3804.3,4.107]
[1753971064882,2.628514,3804.5,3804.3,4.107]
[1753971065063,3.54403538,3804.4,3804.3,4.107]
[1753971065268,0.1312,3804.5,3804.3,4.107]
[1753971065594,0.86888,3804.8,3804.3,4.107]
[1753971065595,0.1312,3804.7,3804.3,4.107]
[1753971065895,2.7595536,3804.7,3804.3,4.107]
[1753971066262,0.4781,3804.6,3804.3,4.107]
[1753971066483,0.6093,3804.7,3804.3,4.107]
[1753971066697,0.4781,3804.6,3804.3,4.107]
[1753971066896,0.4781,3804.5,3804.3,4.107]
[1753971067063,0.1312,3804.6,3804.3,4.107]
[1753971067263,0.4781,3804.8,3804.3,4.107]
[1753971067562,0.1312,3804.7,3804.3,4.107]
[1753971067775,0.1312,3804.7,3804.3,7.19658179]
[1753971068010,0.1312,3804.7,3804.3,4.107]
[1753971068460,3.1312,3804.7,3804.3,4.107]
[1753971068905,0.1312,3804.7,3804.3,4.107]
[1753971069062,0.1312,3804.7,3804.4,4.107]
[1753971069063,0.9155,3804.6,3804.4,4.107]
[1753971069263,0.9155,3804.5,3804.1,0.04]
[1753971069497,0.1312,3804.3,3804.2,4.107]
[1753971069824,0.6093,3804.3,3804.2,4.107]